bitfinex/quotes_SOLUSD_20250920
["timestamp","ask_amount","ask_price","bid_price","bid_amount"]
[1758384362642,4.14627364,241.19,241.11,6.35803968]
[1758384362831,2.79096224,241.18,241.12,14.31559401]
[1758384363140,2.79096224,241.18,241.13,34.06059795]
[1758384363357,2.79096224,241.2,241.16,13.59559401]
[1758384363537,2.79096224,241.22,241.17,32.62]
[1758384363849,2.79096224,241.21,241.18,0.72]
[1758384364153,2.79096224,241.24,241.19,15.03619196]
[1758384364346,2.79096224,241.27,241.2,36.04593698]
[1758384364545,2.79096224,241.26,241.21,0.72]
[1758384364744,1.44059795,241.28,241.21,0.72]
[1758384364745,2.79096224,241.25,241.21,0.72]
[1758384364951,2.79096224,241.24,241.21,0.72]
[1758384365158,2.79096224,241.27,241.21,0.72]
[1758384365349,2.79096224,241.26,241.21,0.72]
[1758384365656,2.79096224,241.25,241.21,0.72]
[1758384365857,5.58516552,241.32,241.23,15.03619196]
[1758384365858,2.79096224,241.27,241.23,15.03619196]
[1758384366043,2.79096224,241.3,241.24,32.62]
[1758384366246,1.44059795,241.29,241.25,0.72]
[1758384366546,1.44059795,241.27,241.22,0.72]
[1758384366855,2.13059795,241.27,241.23,32.62]
[1758384368640,1.44059795,241.27,241.23,31.9]
[1758384368841,1.44059795,241.27,241.24,0.72]
[1758384370740,6.27535666,241.27,241.23,31.9]
[1758384371060,6.27535666,241.27,241.23,32.62]
[1758384371359,5.58535666,241.27,241.24,0.72]
[1758384371951,4.23156019,241.27,241.24,0.72]
[1758384372151,1.44059795,241.27,241.24,0.72]
[1758384372550,5.58535726,241.27,241.23,31.9]
[1758384372753,1.44059795,241.24,241.23,31.9]
[1758384372956,2.13059795,241.24,241.23,31.9]
[1758384374161,6.27584749,241.24,241.19,31.88]
[1758384374460,1.44059795,241.21,241.19,31.88]
[1758384375759,2.13059795,241.21,241.19,31.88]
[1758384375952,1.44059795,241.21,241.19,31.88]
[1758384376149,1.44059795,241.2,241.19,31.88]
[1758384378756,1.44059795,241.25,241.19,32.6]
[1758384379064,1.44059795,241.25,241.2,14.31559401]
[1758384379259,3.47598409,241.26,241.19,31.88]
[1758384379260,1.44059795,241.23,241.19,31.88]
[1758384379463,1.44059795,241.21,241.19,32.6]
[1758384380773,0.69,241.25,241.19,31.88]
[1758384380974,1.44059795,241.24,241.2,0.72]
[1758384381157,1.44059795,241.25,241.2,0.72]
[1758384382039,1.44059795,241.25,241.19,36.02607628]
[1758384382243,1.44059795,241.25,241.21,0.72]
[1758384382444,1.44059795,241.25,241.22,31.88]
[1758384382974,1.44059795,241.25,241.23,0.72]
[1758384383370,2.78598409,241.26,241.24,0.72]
[1758384383685,2.78598409,241.29,241.25,32.6]
[1758384383968,2.78598409,241.29,241.25,31.88]
[1758384384172,2.13059795,241.3,241.26,0.72]
[1758384385253,4.91658204,241.3,241.26,0.72]
[1758384385570,2.78598409,241.3,241.26,0.72]
[1758384385778,4.91658204,241.32,241.27,0.72]
[1758384385953,0.68,241.31,241.27,0.72]
[1758384387174,2.78598409,241.33,241.28,0.66]
[1758384387356,2.78598409,241.33,241.29,31.88]
[1758384387560,2.78598409,241.33,241.3,0.66]
[1758384387760,2.78598409,241.33,241.31,0.66]
[1758384389358,2.78598409,241.33,241.32,0.66]
[1758384389564,50.0,241.34,241.32,0.66]
[1758384389780,50.0,241.34,241.33,31.88]
[1758384389986,52.78191407,241.34,241.33,31.88]
[1758384390194,50.0,241.34,241.33,31.88]
[1758384390366,50.0,241.34,241.33,32.54]
[1758384393598,50.0,241.34,241.33,31.88]
[1758384394402,54.82353194,241.34,241.3,13.59559401]
[1758384394572,54.82353194,241.34,241.31,31.88]
[1758384394771,54.14353194,241.34,241.31,31.88]
[1758384394998,0.68,241.33,241.32,31.88]
[1758384395190,0.68,241.33,241.22,10.36386931]
[1758384395392,54.14353194,241.34,241.26,2.10059795]
[1758384395608,50.0,241.34,241.28,13.59559401]
[1758384395905,54.14354905,241.34,241.29,0.66]
[1758384396083,54.14354905,241.34,241.27,37.46517566]
[1758384396291,0.68,241.33,241.27,38.12517566]
[1758384396690,0.68,241.33,241.27,4.80457771]
[1758384396906,0.68,241.33,241.28,31.88]
[1758384397210,0.68,241.33,241.29,0.66]
[1758384397710,4.82376007,241.33,241.3,1.44059795]
[1758384404323,50.0,241.34,241.3,2.10059795]
[1758384404520,50.68,241.34,241.3,2.10059795]
[1758384404712,54.82354062,241.34,241.3,2.10059795]
[1758384405426,54.82354062,241.34,241.3,1.44059795]
[1758384405612,50.0,241.34,241.32,1.44059795]
[1758384405807,50.0,241.34,241.33,32.52]
[1758384406324,52.78366389,241.34,241.33,31.86]
[1758384407404,50.0,241.34,241.33,31.86]
[1758384410031,50.0,241.34,241.33,32.52]
[1758384410406,50.0,241.34,241.33,31.86]
[1758384411015,50.0,241.34,241.33,32.52]
[1758384411615,50.0,241.34,241.33,50.25929765]
[1758384413027,50.0,241.34,241.33,18.39929765]
[1758384413222,50.0,241.34,241.33,50.25929765]
[1758384413820,50.0,241.34,241.33,13.59559401]
[1758384414023,50.0,241.34,241.33,45.45559401]
[1758384416727,50.0,241.34,241.33,46.13559401]
[1758384417028,50.0,241.34,241.33,45.45559401]
[1758384417635,50.0,241.34,241.33,46.13559401]
[1758384419733,50.0,241.34,241.33,48.38118649]
[1758384419936,50.0,241.34,241.33,52.52489013]
[1758384424841,24.66015321,241.38,241.37,44.79559401]
[1758384425023,2.16535271,241.38,241.37,79.58118649]
[1758384425225,0.1,241.39,241.38,13.59559401]
[1758384425437,0.1,241.39,241.38,14.68987854]
[1758384426226,0.1,241.39,241.38,18.83272384]
[1758384430052,0.1,241.44,241.42,13.59559401]
[1758384430246,0.1,241.44,241.43,45.43559401]
[1758384430551,0.1,241.44,241.43,47.68118649]
[1758384430731,0.1,241.44,241.43,48.36118649]
[1758384431761,0.1,241.44,241.43,19.98317381]
[1758384431928,0.8,241.44,241.43,47.68118649]
[1758384432748,0.8,241.44,241.43,51.82317381]
[1758384432749,0.1,241.44,241.43,51.82317381]
[1758384433959,0.1,241.44,241.43,47.68118649]
[1758384434262,4.94181577,241.44,241.43,31.84]
[1758384434552,4.94181577,241.44,241.4,13.59559401]
[1758384434751,0.7,241.43,241.42,13.59559401]
[1758384434949,0.7,241.43,241.42,45.43559401]
[1758384435427,4.84198732,241.43,241.35,0.68]
[1758384435634,2.24559248,241.42,241.36,13.59559401]
[1758384435846,2.94559248,241.42,241.38,13.59559401]
[1758384436038,0.7,241.41,241.39,31.84]
[1758384436235,6.3875798,241.43,241.39,31.84]
[1758384436554,0.7,241.4,241.39,45.43559401]
[1758384437252,4.14198732,241.43,241.39,45.43559401]
[1758384437253,0.7,241.43,241.4,13.59559401]
[1758384437550,0.1,241.44,241.42,15.84118649]
[1758384437730,0.1,241.44,241.43,45.43559401]
[1758384438241,0.8,241.44,241.43,45.43559401]
[1758384439732,0.1,241.44,241.43,51.82317381]
[1758384440056,0.1,241.44,241.43,52.50317381]
[1758384441162,0.1,241.44,241.43,50.25758133]
[1758384441337,0.1,241.44,241.43,49.57758133]
[1758384443136,0.1,241.44,241.43,52.50317381]
[1758384444660,0.1,241.44,241.43,20.66317381]
[1758384445159,0.1,241.44,241.43,52.50317381]
[1758384445542,0.1,241.44,241.43,50.25758133]
[1758384446661,0.1,241.44,241.43,52.50317381]
[1758384448758,0.1,241.44,241.43,50.25758133]
[1758384448959,0.1,241.44,241.43,52.50317381]
[1758384449166,0.1,241.44,241.43,50.25758133]
[1758384451056,0.1,241.44,241.43,18.41758133]
[1758384451280,0.78,241.44,241.43,49.57758133]
[1758384451970,0.78,241.44,241.43,13.59559401]
[1758384452151,7.16740825,241.44,241.43,45.43559401]
[1758384453059,7.16740825,241.44,241.38,4.14267646]
[1758384453259,2.92559248,241.43,241.39,45.43559401]
[1758384453462,0.68,241.42,241.4,31.84]
[1758384453659,2.24559248,241.43,241.41,13.59559401]
[1758384453872,2.24559248,241.43,241.42,45.43559401]
[1758384454372,2.92559248,241.43,241.42,45.43559401]
[1758384457752,7.0675798,241.43,241.42,45.43559401]
[1758384458673,7.0675798,241.43,241.42,13.59559401]
[1758384458869,7.0675798,241.43,241.42,45.43559401]
[1758384460055,7.0675798,241.43,241.35,13.59559401]
[1758384460266,2.24559248,241.39,241.37,13.59559401]
[1758384460575,2.24559248,241.39,241.38,45.43559401]
[1758384460576,2.92559248,241.39,241.38,45.43559401]
[1758384461152,0.68,241.42,241.39,13.59559401]
[1758384461348,2.24559248,241.4,241.39,13.59559401]
[1758384461581,2.24559248,241.4,241.39,45.43559401]
[1758384461875,2.92559248,241.4,241.39,45.43559401]
[1758384466478,7.06809455,241.4,241.39,45.43559401]
[1758384466888,7.06809455,241.4,241.32,4.14371494]
[1758384466889,9.8568717,241.4,241.32,13.59559401]
[1758384467077,2.24559248,241.35,241.34,13.59559401]
[1758384467258,2.24559248,241.35,241.34,45.43559401]
[1758384468171,7.06895274,241.35,241.34,45.43559401]
[1758384468666,7.06895274,241.35,241.34,31.84]
[1758384472875,17.4273534,241.35,241.26,13.59559401]
[1758384473069,2.24559248,241.27,241.26,13.59559401]
[1758384473266,2.24559248,241.27,241.26,45.45559401]
[1758384473981,35.34336026,241.35,241.27,13.59559401]
[1758384474166,35.34336026,241.35,241.29,13.59559401]
[1758384474167,36.02336026,241.35,241.29,13.59559401]
[1758384474485,2.24559248,241.32,241.31,13.59559401]
[1758384475189,2.24559248,241.32,241.3,31.86]
[1758384475375,2.92559248,241.31,241.26,13.59559401]
[1758384475688,2.24559248,241.27,241.26,13.59559401]
[1758384475988,2.24559248,241.27,241.26,45.47559401]
[1758384476897,2.24559248,241.27,241.22,4.14553592]
[1758384477069,0.71,241.26,241.23,45.49559401]
[1758384477268,2.24559248,241.24,241.23,45.49559401]
[1758384477471,0.71,241.26,241.23,45.49559401]
[1758384477781,2.24559248,241.24,241.23,45.49559401]
[1758384479974,0.71,241.26,241.23,45.49559401]
[1758384480184,2.24559248,241.24,241.23,45.49559401]
[1758384480382,2.24559248,241.24,241.23,46.15559401]
[1758384480590,2.24559248,241.25,241.23,50.30101078]
[1758384481299,2.24559248,241.26,241.24,14.25559401]
[1758384481464,4.14442985,241.29,241.25,31.9]
[1758384481669,2.95559248,241.26,241.21,0.1]
[1758384481866,1.43930777,241.22,241.21,0.1]
[1758384482080,5.584901,241.22,241.21,0.1]
[1758384482278,0.71,241.22,241.21,0.1]
[1758384482492,32.63930777,241.26,241.21,0.1]
[1758384482687,2.14930777,241.26,241.22,31.92]
[1758384482885,31.2,241.24,241.22,31.92]
[1758384483095,0.71,241.25,241.22,31.92]
[1758384483513,1.43930777,241.24,241.22,31.92]
[1758384483790,0.71,241.23,241.22,31.92]
[1758384484392,4.85542138,241.23,241.21,0.1]
[1758384484569,7.19653885,241.22,241.21,0.1]
[1758384484988,7.90653885,241.22,241.21,0.1]
[1758384485403,39.10653885,241.22,241.21,0.1]
[1758384486299,37.494901,241.22,241.21,0.1]
[1758384488608,12.05213208,241.22,241.21,1e-08]
[1758384488776,31.2,241.2,241.14,0.2]
[1758384488972,1.43930777,241.15,241.14,0.2]
[1758384489395,2.14930777,241.15,241.14,0.2]
[1758384489895,0.71,241.15,241.14,0.2]
[1758384490104,2.14930777,241.15,241.14,0.2]
[1758384490310,6.29610436,241.15,241.14,0.2]
[1758384499707,36.89679659,241.15,241.14,1e-08]
[1758384499909,9.05049489,241.15,241.14,1e-08]
[1758384500101,41.09049489,241.15,241.14,1e-08]
[1758384500413,38.33610436,241.15,241.14,1e-08]
[1758384501116,6.29610436,241.15,241.14,1e-08]
[1758384501494,4.85679659,241.15,241.14,1e-08]
[1758384501698,1.6630288,241.2,241.14,0.69000001]
[1758384502018,4.14593698,241.2,241.14,2.12930778]
[1758384502200,4.14593698,241.2,241.15,0.69]
[1758384502402,4.14593698,241.2,241.16,0.69]
[1758384502912,19.70836942,241.22,241.17,0.69]
[1758384503098,19.70836942,241.22,241.18,0.69]
[1758384503409,31.2,241.2,241.19,0.69]
[1758384504524,1.43930777,241.21,241.19,0.69]
[1758384504832,1.43930777,241.2,241.17,0.69]
[1758384506630,1.43930777,241.2,241.17,0.68]
[1758384506826,1.43930777,241.2,241.15,4.14679134]
[1758384507122,15.56264275,241.22,241.18,0.68]
[1758384507328,1.43930777,241.24,241.18,0.68]
[1758384507627,4.20052896,241.24,241.18,0.68]
[1758384508338,1.43930777,241.24,241.18,0.68]
[1758384508630,5.58459608,241.24,241.18,4.82613324]
[1758384508826,5.58459608,241.24,241.19,0.68]
[1758384509035,5.58459608,241.24,241.2,0.68]
[1758384509902,5.58459608,241.24,241.18,0.68]
[1758384509903,6.28459608,241.24,241.18,0.68]
[1758384510102,1.43930777,241.22,241.18,0.68]
[1758384510308,1.43930777,241.22,241.15,15.03490178]
[1758384510530,2.13930777,241.22,241.16,0.68]
[1758384510917,1.43930777,241.22,241.16,0.68]
[1758384512152,35.40052896,241.24,241.16,4.82649755]
[1758384512320,2.76122119,241.23,241.17,0.68]
[1758384514015,2.76122119,241.23,241.18,4.14628078]
[1758384514222,2.76122119,241.23,241.19,0.68]
[1758384514538,2.76122119,241.23,241.2,0.68]
[1758384515317,2.76122119,241.23,241.18,6.26558855]
[1758384515530,2.76122119,241.23,241.19,0.68]
[1758384515733,6.90665344,241.23,241.19,0.68]
[1758384515927,7.60665344,241.23,241.19,0.68]
[1758384516129,6.90665344,241.23,241.18,4.14628078]
[1758384516447,6.90664344,241.23,241.18,0.68]
[1758384516641,0.7,241.22,241.17,13.59559401]
[1758384516837,0.7,241.22,241.17,14.27559401]
[1758384517034,0.7,241.22,241.18,0.68]
[1758384518643,4.84560586,241.22,241.18,0.68]
[1758384520445,4.14560586,241.22,241.16,36.20654132]
[1758384520655,4.14560586,241.22,241.19,0.68]
[1758384520829,4.84560586,241.22,241.17,0.68]
[1758384521341,3.46122119,241.22,241.17,4.82645102]
[1758384521525,2.76122119,241.23,241.18,0.68]
[1758384521867,2.76122119,241.23,241.17,5.58575879]
[1758384521868,2.76122119,241.22,241.19,0.68]
[1758384522159,2.76122119,241.22,241.17,1.43930777]
[1758384522454,0.7,241.21,241.16,32.06]
[1758384522629,0.7,241.2,241.16,32.06]
[1758384522835,0.7,241.19,241.14,0.68000001]
[1758384523054,3.46122119,241.19,241.15,32.02]
[1758384523625,4.14628078,241.18,241.15,32.02]
[1758384524159,4.84628078,241.18,241.14,1e-08]
[1758384524361,0.7,241.17,241.14,32.02000001]
[1758384524536,2.76122119,241.17,241.14,32.02000001]
[1758384524742,3.46122119,241.16,241.14,32.02000001]
[1758384525055,0.7,241.16,241.14,32.02000001]
[1758384525227,3.46122119,241.16,241.14,32.02000001]
[1758384525433,0.7,241.16,241.14,32.02000001]
[1758384525632,3.46122119,241.16,241.14,32.02000001]
[1758384525844,4.84678406,241.16,241.14,32.02000001]
[1758384526152,2.76122119,241.15,241.14,32.02000001]
[1758384526651,4.84678406,241.16,241.14,32.02000001]
[1758384526852,6.90800525,241.16,241.14,32.02000001]
[1758384527153,2.76122119,241.15,241.14,32.02000001]
[1758384527535,4.14678406,241.16,241.14,32.02000001]
[1758384527743,6.90800525,241.16,241.14,32.02000001]
[1758384527942,2.76122119,241.15,241.14,32.02000001]
[1758384528247,4.14678406,241.16,241.14,32.02000001]
[1758384528456,6.90800525,241.16,241.14,32.02000001]
[1758384528659,2.76122119,241.15,241.14,32.02000001]
[1758384529035,4.14678406,241.16,241.14,32.02000001]
[1758384529238,6.90800525,241.16,241.14,32.02000001]
[1758384529545,2.76122119,241.15,241.14,32.02000001]
[1758384530353,4.14678406,241.16,241.14,32.02000001]
[1758384531643,4.84678406,241.16,241.14,32.02000001]
[1758384532154,2.76122119,241.17,241.14,32.02000001]
[1758384532361,2.76122119,241.18,241.15,0.68]
[1758384532657,35.34611261,241.19,241.16,0.68]
[1758384532857,2.76122119,241.18,241.16,0.68]
[1758384533646,2.76122119,241.18,241.14,33.45930778]
[1758384533956,2.76122119,241.18,241.15,0.68]
[1758384534736,6.90756131,241.18,241.14,32.02000001]
[1758384534937,3.46122119,241.17,241.14,32.02000001]
[1758384535157,4.14634012,241.18,241.14,32.02000001]
[1758384535359,4.84634012,241.18,241.14,32.02000001]
[1758384535658,4.84634012,241.18,241.14,32.70000001]
[1758384535861,4.84634012,241.18,241.14,32.02000001]
[1758384536232,7.60756131,241.18,241.14,32.02000001]
[1758384536435,2.76122119,241.17,241.14,32.70000001]
[1758384536636,4.84634012,241.18,241.14,32.70000001]
[1758384536836,4.14652818,241.17,241.14,32.70000001]
[1758384537051,6.90774937,241.17,241.14,32.70000001]
[1758384537249,2.76122119,241.16,241.14,32.70000001]
[1758384537451,4.14652818,241.17,241.14,32.70000001]
[1758384537845,4.14629276,241.18,241.15,0.68]
[1758384538048,6.90751395,241.18,241.15,0.68]
[1758384538251,2.76122119,241.17,241.15,0.68]
[1758384538452,2.76122119,241.18,241.15,0.68]
[1758384538846,6.90751916,241.18,241.15,0.68]
[1758384539046,2.76122119,241.17,241.15,0.68]
[1758384539255,4.81629797,241.18,241.14,32.02000001]
[1758384539456,7.57751916,241.18,241.14,32.02000001]
[1758384539655,2.76122119,241.17,241.14,32.02000001]
[1758384539856,2.76122119,241.17,241.14,32.70000001]
[1758384540037,4.14629797,241.18,241.14,32.02000001]
[1758384540245,6.90751916,241.18,241.14,32.02000001]
[1758384540436,3.43122119,241.17,241.14,32.02000001]
[1758384540640,0.67,241.17,241.14,32.02000001]
[1758384540856,7.5777541,241.17,241.14,32.02000001]
[1758384541060,2.76122119,241.16,241.14,32.02000001]
[1758384541343,4.14653291,241.17,241.14,32.02000001]
[1758384541551,6.9077541,241.17,241.14,32.02000001]
[1758384541760,2.76122119,241.16,241.14,32.02000001]
[1758384542266,4.14653291,241.17,241.14,32.02000001]
[1758384542453,6.9077541,241.17,241.14,32.02000001]
[1758384542654,2.76122119,241.16,241.14,32.02000001]
[1758384543062,2.76122119,241.16,241.14,32.72000001]
[1758384543364,2.76122119,241.18,241.15,0.7]
[1758384543569,2.76122119,241.17,241.15,0.7]
[1758384543868,2.76122119,241.19,241.15,0.7]
[1758384544056,2.76122119,241.18,241.15,0.7]
[1758384544379,2.76122119,241.17,241.15,0.7]
[1758384545258,2.76122119,241.16,241.14,1e-08]
[1758384545458,2.76122119,241.17,241.15,31.96]
[1758384545656,2.76122119,241.16,241.15,31.96]
[1758384550882,7.61784583,241.16,241.15,31.96]
[1758384551082,7.61784583,241.16,241.14,1e-08]
[1758384551279,3.47122119,241.15,241.14,1e-08]
[1758384551473,3.47122119,241.15,241.14,31.94000001]
[1758384552564,6.90801778,241.15,241.14,31.94000001]
[1758384552762,7.61801778,241.15,241.14,31.94000001]
[1758384553184,6.90801778,241.15,241.14,31.94000001]
[1758384555482,6.90801778,241.15,241.14,1e-08]
[1758384555688,6.90801778,241.15,241.14,31.92000001]
[1758384556682,7.61801778,241.15,241.14,31.92000001]
[1758384556895,7.61801778,241.15,241.14,1e-08]
[1758384557185,9.86772316,241.15,241.14,1e-08]
[1758384563792,9.15772316,241.15,241.14,1e-08]
[1758384564377,6.90801778,241.15,241.14,1e-08]
[1758384566386,6.90801778,241.15,241.14,0.70000001]
[1758384567397,6.90801778,241.15,241.14,1e-08]
[1758384570798,7.58801778,241.15,241.14,1e-08]
[1758384571604,6.90801778,241.15,241.14,1e-08]
[1758384573100,9.83772316,241.15,241.14,1e-08]
[1758384575798,9.15772316,241.15,241.14,1e-08]
[1758384575978,6.90801778,241.15,241.14,0.70000001]
[1758384576888,6.90801778,241.15,241.14,1e-08]
[1758384578002,9.15772316,241.15,241.14,1e-08]
[1758384578972,9.83772316,241.15,241.14,1e-08]
[1758384581777,9.15772316,241.15,241.14,1e-08]
[1758384582496,9.83772316,241.15,241.14,1e-08]
[1758384584984,7.58801778,241.15,241.14,1e-08]
[1758384585183,9.83772316,241.15,241.14,1e-08]
[1758384586808,31.2,241.12,241.11,0.1]
[1758384586982,36.21092657,241.12,241.11,0.1]
[1758384587182,34.64122119,241.12,241.11,0.1]
[1758384587408,36.89092657,241.12,241.11,0.1]
[1758384588102,33.96122119,241.12,241.11,0.1]
[1758384588307,2.76122119,241.12,241.11,0.8]
[1758384589389,9.15823911,241.12,241.11,0.1]
[1758384590582,41.03823911,241.12,241.11,0.1]
[1758384591290,38.78853373,241.12,241.11,0.1]
[1758384591491,41.03823911,241.12,241.11,0.1]
[1758384592303,38.78853373,241.12,241.11,0.1]
[1758384592505,38.78853373,241.12,241.11,0.8]
[1758384592506,38.10853373,241.12,241.11,0.8]
[1758384592814,33.96122119,241.12,241.11,0.8]
[1758384593307,38.10853373,241.12,241.11,0.1]
[1758384593699,38.10853373,241.12,241.11,0.8]
[1758384594494,40.35823911,241.12,241.11,0.8]
[1758384595817,9.15823911,241.12,241.11,0.8]
[1758384596313,9.15823911,241.12,241.11,0.1]
[1758384596510,9.87823911,241.12,241.11,0.1]
[1758384596718,7.62853373,241.12,241.11,0.1]
[1758384596903,9.87823911,241.12,241.11,0.1]
[1758384598104,9.15823911,241.12,241.11,0.1]
[1758384599216,6.90853373,241.12,241.11,0.81]
[1758384599606,2.76122119,241.12,241.11,0.81]
[1758384600815,6.90853373,241.12,241.11,0.1]
[1758384601118,2.76122119,241.12,241.11,7.20718993]
[1758384601908,2.76122119,241.12,241.11,6.39734054]
[1758384603325,2.76122119,241.12,241.11,0.81]
[1758384606899,2.76122119,241.12,241.11,0.1]
[1758384607229,4.91107718,241.12,241.11,32.0]
[1758384607702,4.20107718,241.12,241.11,32.0]
[1758384608311,2.76122119,241.12,241.11,32.0]
[1758384608626,0.71,241.14,241.11,32.0]
[1758384608627,1.43985599,241.18,241.12,13.59559401]
[1758384608823,2.79841323,241.17,241.13,0.72]
[1758384609016,2.79841323,241.16,241.13,0.72]
[1758384609324,2.79841323,241.15,241.11,32.0]
[1758384609627,2.79841323,241.14,241.12,0.72]
[1758384609803,2.79841323,241.13,241.12,0.72]
[1758384610212,2.79841323,241.13,241.12,19.90276254]
[1758384611008,2.79841323,241.19,241.13,13.59559401]
[1758384611320,2.79841323,241.18,241.14,0.72]
[1758384611507,2.79841323,241.17,241.14,0.72]
[1758384611825,2.79841323,241.16,241.15,0.72]
[1758384612028,2.79841323,241.16,241.15,32.68]
[1758384612728,2.79841323,241.16,241.15,31.96]
[1758384613620,2.79841323,241.16,241.15,51.86224659]
[1758384613824,2.79841323,241.16,241.15,51.86191709]
[1758384614022,2.79841323,241.16,241.15,56.00871368]
[1758384615031,8.35350943,241.23,241.15,56.00871368]
[1758384615032,2.79841323,241.22,241.16,13.59559401]
[1758384615328,2.79841323,241.21,241.18,1.43985599]
[1758384615529,2.79841323,241.2,241.19,32.04]
[1758384618033,2.79841323,241.2,241.19,33.47985599]
[1758384618217,2.79841323,241.2,241.19,34.19985599]
[1758384618626,2.79841323,241.24,241.19,34.19985599]
[1758384618828,2.79841323,241.23,241.2,1.43985599]
[1758384619018,2.79841323,241.22,241.2,1.43985599]
[1758384619343,2.79841323,241.25,241.21,13.59559401]
[1758384619536,2.79841323,241.28,241.23,1.43985599]
[1758384619736,2.79841323,241.27,241.24,0.72]
[1758384619945,3.50841323,241.28,241.25,32.1]
[1758384620244,0.71,241.27,241.25,32.1]
[1758384620853,2.79841323,241.28,241.25,32.1]
[1758384621024,0.71,241.28,241.25,32.1]
[1758384621219,4.1444135,241.29,241.26,32.1]
[1758384621550,0.71,241.27,241.23,1.43985599]
[1758384621743,0.71,241.27,241.23,2.15985599]
[1758384622252,0.71,241.27,241.24,32.1]
[1758384622730,4.1444135,241.29,241.24,32.1]
[1758384622938,4.8544135,241.29,241.24,32.82]
[1758384623448,0.71,241.28,241.24,32.82]
[1758384623650,0.71,241.28,241.24,32.1]
[1758384624019,4.85457301,241.28,241.24,32.1]
[1758384624719,4.85457301,241.28,241.24,32.82]
[1758384624924,4.85457301,241.28,241.25,32.06]
[1758384625143,2.79841323,241.31,241.25,32.06]
[1758384625144,6.94249737,241.31,241.25,32.78]
[1758384625345,6.94249737,241.31,241.26,15.03545]
[1758384625524,7.65249737,241.31,241.26,15.75545]
[1758384625726,7.65249737,241.31,241.26,14.31559401]
[1758384625943,7.65249737,241.31,241.26,15.75545]
[1758384627657,2.11985599,241.3,241.27,32.12]
[1758384627852,0.68,241.29,241.27,32.12]
[1758384628161,0.68,241.28,241.27,32.12]
[1758384628340,0.68,241.28,241.27,32.14]
[1758384628658,4.82456233,241.28,241.27,32.14]
[1758384629564,2.79841323,241.3,241.27,46.41559401]
[1758384629866,0.78,241.4,241.29,13.59559401]
[1758384630031,31.2,241.38,241.31,1.43985599]
[1758384630236,2.21985599,241.4,241.32,32.84]
[1758384630237,33.97853635,241.37,241.32,32.84]
[1758384630464,31.2,241.37,241.33,0.68]
[1758384630634,4.14318859,241.36,241.33,0.68]
[1758384631139,4.14318859,241.36,241.34,32.16]
[1758384632356,4.82318859,241.36,241.34,32.16]
[1758384635073,4.14318859,241.36,241.34,32.16]
[1758384635686,4.14318859,241.36,241.34,32.12]
[1758384635875,0.2,241.39,241.35,14.27559401]
[1758384636169,4.34276035,241.39,241.37,13.59559401]
[1758384636469,4.34276035,241.39,241.38,32.24]
[1758384637977,4.34276035,241.39,241.33,15.03545]
[1758384638273,5.02276035,241.39,241.34,13.59559401]
[1758384638441,5.02276035,241.39,241.34,45.81559401]
[1758384638644,5.02276035,241.39,241.35,0.68]
[1758384638857,5.02276035,241.39,241.36,0.68]
[1758384638858,4.34276035,241.39,241.36,0.68]
[1758384639379,4.34276035,241.39,241.37,32.22]
[1758384639547,4.34276035,241.39,241.37,32.9]
[1758384640360,0.2,241.39,241.38,14.27559401]
[1758384641570,0.2,241.39,241.38,32.44]
[1758384642074,0.2,241.39,241.38,33.12]
[1758384642550,0.2,241.39,241.38,0.68]
[1758384642750,0.2,241.39,241.38,33.14]
[1758384643283,0.2,241.39,241.36,13.59559401]
[1758384643284,4.34267368,241.39,241.35,0.68]
[1758384643456,5.02267368,241.39,241.38,32.44]
[1758384643862,4.34267368,241.39,241.38,32.44]
[1758384644773,5.02267368,241.39,241.34,0.68]
[1758384644993,1.43985599,241.36,241.35,32.44]
[1758384645153,1.43985599,241.36,241.3,13.59559401]
[1758384645356,2.11985599,241.36,241.31,32.44]
[1758384645762,2.11985599,241.36,241.31,0.68]
[1758384646078,1.43985599,241.36,241.32,33.12]